Cogmind - Beta 16.1 @@@ ROGUE MODE // 2026.03.18 @ 09:51:51 Player: puppuppit Result: Destroyed by Tracker with Linked Autogun Performance ------------- Evolutions (7) 3500 Regions Visited (13) 2600 Robots Destroyed (421) 2105 Value Destroyed (18089) 18089 Prototype IDs (65) 1300 Alien Tech Used (4) 800 Bonus (13317) 13317 TOTAL SCORE: 41711 Bonus ------- Triggered High Security 500 High Alert Combat Kills 6956 Follower Combat Kills 2061 Met Zhirov 300 Found Hidden Lab 3000 Pursued by Intercept 500 Cogmind --------- Core Integrity 0/1300 Matter 450/450 Energy 98/100 System Corruption 16% Temperature Cool (0) Movement Core (50) Location -3/Research Parts ------- > --- POWER (2) -------- (None) > --- PROPULSION (8) --- Improved Gyrokinetic Inverter > --- UTILITY (8) ------ Compact Matter Pod Core Analyzer Graphene Brace Improved Hacking Suite > --- WEAPON (4) ------- (None) > --- INVENTORY (5) ---- AEGIS Remote Shield Transdimensional Reconstructor Core Reset Matrix Potential Cannon Peak State ------------ > --- POWER ------------ Quantum Reactor Light Quantum Reactor > --- PROPULSION ------- Antigrav System Combat Linear Gravjet Combat Linear Gravjet Combat Linear Gravjet Combat Linear Gravjet Combat Linear Gravjet Combat Linear Gravjet Combat Linear Gravjet > --- UTILITY ---------- Experimental Heat Sink Large Storage Unit Core Analyzer Improved Armor Integrity Analyzer Graphene Brace Advanced Thermal Shield Improved Hacking Suite Quantum Router > --- WEAPON ----------- Potential Cannon Hypervelocity Railgun Hypervelocity Railgun > --- INVENTORY -------- Combat Linear Gravjet Compact Matter Pod Improved Matter Compressor Advanced EM Shield Advanced Force Field AEGIS Remote Shield Transdimensional Reconstructor Core Reset Matrix KE Penetrator Hypervelocity Railgun Fusion Bomb Launcher Fusion Bomb Launcher Guided Remote Datajack [Rating: 182] Favorites ----------- Power Micro Fission Core Engine Subdweller Power Source Power Core Micro Fission Core Reactor Antimatter Reactor Propulsion Armored Medium Treads Treads Armored Medium Treads Leg Improved Titanium Leg Wheel Wheel Hover Unit Combat Linear Gravjet Flight Unit Flightbrick Utility Large Storage Unit Device Improved Weapon Cycler Storage Large Storage Unit Processor Improved Armor Integrity Analyzer Hackware System Shield Protection Improved Heavy Armor Plating Weapon Gauss Rifle Energy Gun Field Laser Energy Cannon Advanced Beam Cannon Ballistic Gun Gauss Rifle Ballistic Cannon Light Cannon Launcher Neutron Missile Launcher Special Weapon Guided Remote Datajack Impact Weapon Thunder Hammer Slashing Weapon Centrium Greatsword Piercing Weapon Lance Build | -11 -10 -10 -7 -7 -5 -5 -5 -5 -4 -4 -4 -4 -3 ------- Run | Yrd Mat Sub Rec Scr Fac Upp Upp Zhi Pro Fac Arm Lab Res Slots Evolved 14 | . . . . . 10 . . . . 2 . . 2 Power 1 | . . . . . 1 . . . . . . . . Propulsion 6 | . . . . . 5 . . . . . . . 1 Utility 5 | . . . . . 2 . . . . 2 . . 1 Weapon 2 | . . . . . 2 . . . . . . . . Parts Attached 303 | 7 15 13 7 4 64 11 3 3 20 51 54 8 43 Power 44 | 1 4 3 . 2 7 . . . 4 10 6 . 7 Engine 17 | 1 4 3 . 2 . . . . 1 2 . . 4 Core 13 | . . . . . 7 . . . . 5 1 . . Reactor 14 | . . . . . . . . . 3 3 5 . 3 Propulsion 73 | 2 1 4 2 . 18 3 1 . 1 14 17 . 10 Treads 16 | 2 1 2 2 . 7 2 . . . . . . . Leg 3 | . . . . . . 1 1 . . . . . 1 Wheel 7 | . . 2 . . 5 . . . . . . . . Hover 39 | . . . . . 2 . . . 1 11 17 . 8 Flight 8 | . . . . . 4 . . . . 3 . . 1 Utility 93 | 2 4 1 3 . 24 5 . 2 5 18 14 5 10 Device 53 | 1 2 1 . . 10 4 . 1 3 13 8 3 7 Storage 11 | 1 2 . . . 2 . . 1 1 1 1 . 2 Processor 13 | . . . 1 . 6 1 . . . 1 3 1 . Hackware 8 | . . . 2 . 1 . . . . 2 1 1 1 Protection 8 | . . . . . 5 . . . 1 1 1 . . Artifact . | . . . . . . . . . . . . . . Weapon 93 | 2 6 5 2 2 15 3 2 1 10 9 17 3 16 Energy Gun 11 | 2 1 1 . 1 . . . . 2 1 . . 3 Energy Cannon 6 | . 2 1 . . 1 . . . . . . 1 1 Ballistic Gun 42 | . . . 1 1 9 2 2 . 1 7 14 1 4 Ballistic Cannon 11 | . 2 1 1 . . . . . 6 . 1 . . Launcher 11 | . 1 2 . . 4 1 . . . . . . 3 Special Weapon 3 | . . . . . 1 . . 1 . . . 1 . Impact Weapon 3 | . . . . . . . . . . . . . 3 Slashing Weapon 3 | . . . . . . . . . . 1 . . 2 Piercing Weapon 3 | . . . . . . . . . 1 . 2 . . Special Melee Weapon . | . . . . . . . . . . . . . . Unidentified Prototypes 30 | . 1 . . . 9 . . 3 . 2 6 6 3 Corrupted Parts 1 | . . . . . . . . . . . . . 1 System Corruption 7 | . . . . . . . . . . . . . 7 Parts Lost 113 | . 3 7 1 . 10 3 7 . 16 4 19 1 42 Power 21 | . 1 2 . . 1 . 1 . 4 1 3 . 8 Propulsion 35 | . 1 2 . . 3 1 3 . 4 2 5 . 14 Utility 19 | . . . 1 . 2 . 1 . 1 1 5 . 8 Weapon 38 | . 1 3 . . 4 2 2 . 7 . 6 1 12 Highest Loss Streak 22 | . 2 5 1 . 3 2 4 . 7 2 6 2 22 To Critical Strikes 1 | . . . . . 1 . . . . . . . . Average Backups 12 | . 8 11 11 10 13 13 13 13 14 14 14 14 13 Power . | . . 1 1 . . . . . . . . . . Propulsion 2 | . . 2 3 2 2 2 2 2 1 1 2 2 . Utility 4 | . 2 3 3 3 5 5 6 4 6 5 5 4 5 Weapon 4 | . 4 4 4 3 3 5 5 7 5 4 4 5 3 Tool/Special . | . . . . . . . . . . . . . . Unused Backups 42 | . 3 4 . 7 15 . 2 . . 4 3 1 3 Power 5 | . . . . 1 2 . . . . . 1 . 1 Propulsion 8 | . . . . 1 4 . . . . 1 2 . . Utility 18 | . 1 1 . 4 8 . 1 . . 2 . 1 . Weapon 7 | . 2 2 . 1 . . 1 . . 1 . . . Tool/Special 4 | . . 1 . . 1 . . . . . . . 2 Average Slot Usage (%) 85 | . 99 97 99 98 78 82 81 53 59 86 93 96 88 Engine 5 | . 13 12 14 12 . . . . . . . . 1 Core 3 | . . . . . 9 10 8 5 . 3 7 . . Reactor 1 | . . . . . . . . . 4 4 2 10 5 Treads 16 | . 27 26 28 28 9 20 20 17 7 . . . . Hover 5 | . . . . . . . . . 2 29 35 35 31 Flight 1 | . . . . . 6 2 . . . 1 . . . Device 9 | . 13 14 6 . 8 9 11 10 10 9 10 16 12 Storage 8 | . 14 14 14 14 5 5 5 5 4 5 5 5 4 Processor 5 | . . . . . 15 5 5 5 5 8 7 10 9 Hackware 2 | . . . 7 14 . . . . . 4 3 . 8 Energy Gun 1 | . . 7 . . . . . . 2 2 . . . Energy Cannon 2 | . 14 6 3 . . . . . . . . 1 . Ballistic Gun 10 | . . . 10 18 18 21 20 1 3 11 18 12 8 Ballistic Cannon 6 | . 12 13 14 9 . . . . 9 . . . . Peak Build Rating 182 | 9 13 17 22 26 127 128 96 74 83 135 153 173 182 Average Rating 67 | 5 11 15 20 21 107 96 77 58 66 113 136 158 150 On Entrance 67 | . 9 12 17 21 23 119 89 74 70 72 129 144 161 Avg Prop Armor Cover (%) 9 | . . 12 . . 18 7 7 16 4 3 1 . 3 Naked Turns . | . . . . . . . . . . . . . . Heaviest Build 111 | 12 33 37 41 41 79 81 64 43 99 79 88 111 90 Greatest Support 136 | 40 40 40 40 40 83 136 136 81 81 87 100 98 109 Greatest Overweight (x) 6 | . . 1 1 1 5 . . . 3 2 1 1 6 Average Overweight (x) . | . . . . . . . . . 1 . . . . Largest Inventory Capacity 20 | 8 15 15 15 15 15 15 15 15 20 15 15 15 15 Average Capacity 15 | 7 11 15 15 15 15 15 15 15 19 15 15 15 14 Most Carried 17 | 1 12 15 15 15 15 15 15 15 17 15 15 15 15 Average Carried 13 | . 8 14 15 13 13 14 14 14 15 14 14 14 14 Final Capacity 20 | 8 15 15 15 15 15 15 15 15 20 15 15 15 15 Final Carried 15 | 1 10 15 15 15 15 15 15 15 15 15 15 15 12 Class Distribution -------------------- 29% | Mutant 22% | Scavenger-Gunner 14% | Commander-Mutant 12% | Gunner 4% | Derelict-Gunner 3% | Scavenger-Skirmisher 3% | Scavenger-Tank Dominant Class ---------------- Mutant | -10/Materials Mutant | -10/Subcaves Commander-Mutant | -7/Recycling Commander-Mutant | -7/Scraptown Scavenger-Gunner | -5/Factory Scavenger-Gunner | -5/Upper Caves Scavenger-Gunner | -5/Upper Caves Mutant | -5/Zhirov Gunner | -4/Proximity Caves Scavenger-Sprinter | -4/Factory Gunner | -4/Armory Scavenger-Tank | -4/Lab Hacker-Gunner | -3/Research Resources | -11 -10 -10 -7 -7 -5 -5 -5 -5 -4 -4 -4 -4 -3 ----------- Run | Yrd Mat Sub Rec Scr Fac Upp Upp Zhi Pro Fac Arm Lab Res Matter Collected 18355 | 293 803 388 301 50 4927 771 866 . 1839 2259 3244 297 2317 Remotely 1406 | . . . . . . . . . . 178 342 . 886 Salvage Created 20312 | 196 1208 230 623 . 6366 926 1792 . 789 1867 3524 68 2723 Parts 876 | 13 79 17 19 . 277 37 62 . 21 81 145 2 123 Haulers Intercepted 13 | . 2 . . . 6 . . . . 1 . . 4 Recyclers Shooed 24 | . . . 5 . 10 . . . . 4 . . 5 Parts Field Recycled . | . . . . . . . . . . . . . . Retrieved Matter . | . . . . . . . . . . . . . . Parts Self-Destructed 107 | . . 9 . . . 40 40 . 18 . . . . Prevented . | . . . . . . . . . . . . . . Parts Restored . | . . . . . . . . . . . . . . Kills | -11 -10 -10 -7 -7 -5 -5 -5 -5 -4 -4 -4 -4 -3 ------- Run | Yrd Mat Sub Rec Scr Fac Upp Upp Zhi Pro Fac Arm Lab Res Combat Hostiles Destroyed 295 | . 25 7 5 . 62 16 25 . 22 25 76 1 31 Melee 2 | . . . . . . . . . . . . . 2 Guns 144 | . 1 1 1 . 56 12 17 . 2 14 32 . 8 Cannons 43 | . 24 1 4 . . . . . 14 . . . . AOE 104 | . . 4 . . 6 4 8 . 6 11 44 . 21 Classes Destroyed 24 | 3 6 1 4 . 5 1 1 . 1 . 2 . . Worker 41 | 2 5 . . . 15 . . . . 9 . . 10 Builder 9 | . 3 . . . 3 . . . . . . . 3 Tunneler 6 | 3 . . . . 2 . . . . 1 . . . Hauler 13 | . 2 . . . 6 . . . . 1 . . 4 Recycler 29 | 1 2 . 6 . 12 . . . . 3 . . 5 Mechanic 8 | . . . . . 3 . . . . . 5 . . Operator 5 | . 1 . . . 2 . . . . 1 1 . . Drone 2 | . . . . . . . . . 2 . . . . Watcher 12 | . 3 . . . 5 . . . . . 1 . 3 Swarmer 42 | . 6 . . . 5 2 4 . 5 5 9 . 6 Saboteur 6 | . . . . . . . . . . . 6 . . Grunt 141 | . 19 . . . 28 10 12 . 10 10 38 . 14 Brawler 6 | . . . . . 2 . 2 . . 1 1 . . Duelist 12 | . . . 1 . 3 . 2 . 1 . 5 . . Protector 4 | . . . . . 3 . . . . . 1 . . Sentry 16 | . . . 2 . 3 2 2 . 1 3 3 . . Demolisher 4 | . . . 1 . . . . . . . 3 . . Specialist 2 | . . . . . . . . . . . 2 . . Hunter 19 | . . . 1 . 8 1 1 . 2 2 2 . 2 Programmer 30 | . . . . . 10 . 2 . . 4 8 . 6 Heavy 1 | . . . . . 1 . . . . . . . . Behemoth 2 | . . . . . . 1 . . 1 . . . . Tracker 2 | . . . . . . . . . . . . . 2 Combat Programmer 1 | . . . . . . . . . . . . . 1 Subdweller 7 | . . 7 . . . . . . . . . . . Samaritan 1 | . . . . . . . 1 . . . . . . Best Kill Streak 20 | 4 5 3 3 . 8 6 12 . 7 5 20 1 13 Combat Bots Only 17 | . 4 3 1 . 6 6 12 . 7 3 17 1 6 Max Kills in Single Turn 9 | 1 2 2 1 . 3 4 5 . 2 4 9 1 4 Gunslinging 2 | . . . . . 1 1 2 . . . . . . Exploded 8 | . . 2 . . 3 4 5 . 2 3 8 . 4 Melee 1 | . . . . . . . . . . . . . 1 Uniques/NPCs Destroyed 1 | . . . . . . . . . . . . 1 . A5 (-4/Lab) Combat | -11 -10 -10 -7 -7 -5 -5 -5 -5 -4 -4 -4 -4 -3 -------- Run | Yrd Mat Sub Rec Scr Fac Upp Upp Zhi Pro Fac Arm Lab Res Hostile Shots Fired 1932 | . 105 56 51 . 319 70 76 . 165 243 329 45 473 Missed 615 | . 30 22 22 . 72 26 17 . 56 101 116 15 138 Hits 1317 | . 75 34 29 . 247 44 59 . 109 142 213 30 335 Melee 13 | . . . . . 2 . 4 . 5 1 1 . . Projectile 1304 | . 75 34 29 . 245 44 55 . 104 141 212 30 335 AOE 9 | . . . 1 . . . . . . . 8 . . Critical Strikes 71 | . . 2 . . 21 1 4 . 4 5 14 . 20 Actively Blocked 15 | . . . . . . . . . . . . . 15 Part Disruptions 3 | . . . . . . . 1 . . . . . 2 Damage Taken 22862 | . 777 817 218 . 4329 897 1203 . 2207 1940 4409 270 5795 Core 2625 | . 143 74 16 . 314 38 44 . 193 183 266 40 1314 Absorbed by Shields 1031 | . . . 77 . 508 38 . . . 195 67 112 34 Redirected to Shielding 61 | . . . . . 61 . . . . . . . . Ignored by Resistances 2881 | . . . . . 553 . . . . 83 280 393 1572 Regen/Repaired (Parts) 499 | . 210 . . . . . . . . 141 . . 148 Core Remaining (%) 50 | 100 . . . 6 . . . . 41 . . 53 . Volleys Fired 798 | 17 87 31 33 . 218 31 45 3 66 85 108 1 73 Largest 4 | 2 2 2 2 . 4 4 4 1 4 4 4 3 4 Hottest 415 | 90 98 110 120 . 133 194 133 7 415 328 225 273 280 Shots Fired 2229 | 31 161 50 65 . 774 111 154 3 146 183 370 3 178 Gun 1804 | 31 6 32 24 . 761 102 150 . 36 176 346 2 138 Cannon 327 | . 154 12 41 . . 8 . . 104 . 1 1 6 Launcher 93 | . 1 6 . . 11 1 4 . 6 7 23 . 34 Special 5 | . . . . . 2 . . 3 . . . . . Kinetic 1882 | . 74 14 57 . 761 102 150 . 122 138 333 2 129 Thermal 211 | 31 80 4 8 . . 8 . . 18 38 14 1 9 Explosive 85 | . 1 . . . 11 1 4 . 6 7 23 . 32 Electromagnetic 46 | . 6 32 . . . . . . . . . . 8 Robot Hit Streak 22 | 4 8 8 7 . 22 18 17 3 14 11 17 1 9 Robot Miss Streak 7 | 3 7 1 3 . 7 4 7 . 7 4 5 2 6 Penetration Max 3 | . . . 1 . 3 1 1 . . . 2 . 2 Secondary Targets 26 | . . . . . 9 2 5 . . 3 5 . 2 Max Gunslinging Chain 2 | . . . . . 2 1 2 . . 1 1 . 1 Shots Hit Robots 1326 | 18 86 33 39 . 462 73 98 3 85 106 203 1 119 Core Hits 934 | 7 41 13 17 . 250 40 90 . 49 70 229 . 128 Critical Kills 54 | . . . . . 29 1 1 . 1 2 4 1 15 Critical Parts Destroyed 86 | . . . . . 46 1 2 . 1 2 15 . 19 Critical Strikes 160 | . 4 2 2 . 75 2 3 . 9 5 20 1 37 Burn 1 | . . . . . . . . . . . . . 1 Meltdown 1 | . . . . . . . . . . . . 1 . Destroy 135 | . . . . . 75 2 3 . 2 4 20 . 29 Blast 13 | . 4 . 2 . . . . . 7 . . . . Corrupt 2 | . . 2 . . . . . . . . . . . Smash 6 | . . . . . . . . . . . . . 6 Sever 1 | . . . . . . . . . . 1 . . . Impale 1 | . . . . . . . . . . . . . 1 Melee Attacks 58 | . . . . . . . . . 7 10 4 7 30 Impact 21 | . . . . . . . . . . . . . 21 Slashing 6 | . . . . . . . . . . 6 . . . Piercing 31 | . . . . . . . . . 7 4 4 7 9 Sneak Attacks 14 | . . . . . . . . . . 6 . . 8 Combat Hostiles . | . . . . . . . . . . . . . . Follow-up Attacks 1 | . . . . . . . . . . . . . 1 Damage Inflicted 54634 | 203 1814 876 1026 . 11562 1835 3727 . 3607 5611 16054 88 8231 Guns 24418 | 203 21 213 284 . 10530 1429 2338 . 487 2244 5388 . 1281 Cannons 5116 | . 1727 108 734 . . 45 . . 2312 . . 88 102 Explosions 22666 | . 66 555 . . 1032 361 1389 . 797 2401 10666 . 5399 Melee 2362 | . . . . . . . . . . 936 . . 1426 Ramming 72 | . . . 8 . . . . . 11 30 . . 23 Kinetic 27058 | . 713 606 901 . 10530 1429 2338 . 2357 1798 5307 . 1079 Thermal 5028 | 203 1014 57 117 . 36 45 . . 442 1380 1091 88 555 Explosive 19423 | . 66 . . . 996 361 1389 . 797 1467 9656 . 4691 Electromagnetic 691 | . 21 213 . . . . . . . . . . 457 Impact 879 | . . . . . . . . . . . . . 879 Slashing 874 | . . . . . . . . . . 874 . . . Piercing 609 | . . . . . . . . . . 62 . . 547 Highest Corruption 16 | . 4 4 . . 14 14 15 15 15 1 3 6 16 Average Corruption 9 | . 4 3 . . 7 14 14 15 15 1 2 5 12 Corruption Purged 5 | . . 4 . . . . . . . 1 . . . Corruption Blocked . | . . . . . . . . . . . . . . Effects 454 | . 53 6 . . 74 75 58 15 131 7 3 3 29 Message Errors 120 | . 17 1 . . 20 21 17 4 29 . . 3 8 Matter Fused 100 | . 12 3 . . 11 15 11 8 34 1 . . 5 Heat Flow Errors 49 | . 3 1 . . 7 7 5 1 17 3 . . 5 Energy Discharges 50 | . 6 . . . 10 8 3 1 17 2 1 . 2 Parts Rejected 2 | . 1 . . . . . . . 1 . . . . Parts Fused 7 | . 1 . . . 1 1 1 . 3 . . . . Data Loss (minor) 42 | . 2 . . . 7 10 6 . 15 . 1 . 1 Data Loss (major) 33 | . 6 . . . 3 4 8 1 8 . . . 3 Misfires 18 | . 2 . . . 4 5 3 . 2 1 . . 1 Alerts 11 | . 1 1 . . 3 1 1 . 3 . . . 1 Misdirections 2 | . . . . . . . . . . . . . 2 Weapon Failures 20 | . 2 . . . 8 3 3 . 2 . 1 . 1 Overload Shots 22 | . . . . . . . . . 1 16 5 . . Effects 2 | . . . . . . . . . . 1 1 . . Energy Bleed 2 | . . . . . . . . . . 1 1 . . Overflow Damage 2266 | . 34 . 45 . 10 19 24 . 112 516 371 . 1135 Projectiles 87 | . 34 . 45 . . . . . 8 . . . . Explosions 1099 | . . . . . 10 19 24 . 104 267 371 . 304 Melee 1080 | . . . . . . . . . . 249 . . 831 Knockbacks 26 | . 4 . 6 . . . . . 14 . . . 2 Impact 2 | . . . . . . . . . . . . . 2 Kinetic 23 | . 4 . 6 . . . . . 13 . . . . Secondary 1 | . . . . . . . . . 1 . . . . Self-Inflicted Damage 316 | . 8 26 . . 119 . . . 32 15 . . 116 Shots 8 | . 1 1 . . 2 . . . 1 . . . 3 Rammed 6 | . . . 1 . . . . . 2 1 . . 2 Targets Rammed 7 | . . . 2 . . . . . 2 1 . . 2 Kicked . | . . . . . . . . . . . . . . Crushed 1 | . . . 1 . . . . . . . . . . Highest Temperature 612 | 240 291 113 72 . 393 311 198 161 612 427 296 124 380 Average Temperature 91 | 109 81 73 23 . 94 94 94 87 119 93 67 21 111 Received Heat Transfer 3409 | . 297 69 54 . 737 240 333 . 356 234 765 . 324 Effects 39 | 1 6 . . . 10 . . . 8 3 6 . 5 Shutdowns 3 | . . . . . 1 . . . 1 . . . 1 Energy Bleed 7 | . 1 . . . 2 . . . . 1 . . 3 Interference 22 | 1 5 . . . 4 . . . 5 1 6 . . Short Circuit 2 | . . . . . 1 . . . 1 . . . . Damage (minor) 5 | . . . . . 2 . . . 1 1 . . 1 Siege Activations . | . . . . . . . . . . . . . . Martial Activations . | . . . . . . . . . . . . . . Shielding Activations . | . . . . . . . . . . . . . . Robots Disrupted . | . . . . . . . . . . . . . . Combat Hostiles . | . . . . . . . . . . . . . . Robots Corrupted 5 | . . 1 . . . . . . . . . . 4 Combat Hostiles 1 | . . 1 . . . . . . . . . . . Parts Fried 11 | . . 3 . . 1 . . . . . . . 7 Impact Corruptions 18 | . . . . . . . . . . . . . 18 Robots Melted 1 | . . . . . . . . . . . . 1 . Combat Hostiles 1 | . . . . . . . . . . . . 1 . Parts Melted 9 | . . . . . . . . . . 2 . 3 4 Heat Transferred 5824 | 534 1776 74 129 . 50 . . . 420 1268 898 25 650 Parts Sabotaged 2 | . . . . . 2 . . . . . . . . Parts Stolen . | . . . . . . . . . . . . . . Parts Stripped . | . . . . . . . . . . . . . . Power Chain Reactions 6 | . . . . . . . . . . 1 5 . . Alert | -11 -10 -10 -7 -7 -5 -5 -5 -5 -4 -4 -4 -4 -3 ------- Run | Yrd Mat Sub Rec Scr Fac Upp Upp Zhi Pro Fac Arm Lab Res Maximum Alert Level 5 | . 1 . . . 5 . . . . 4 5 . 4 Low Security (%) 42 | 100 74 . 100 . 9 . . . . 7 . . 21 Level 1 18 | . 25 . . . 13 . . . . 60 . . 22 Level 2 6 | . . . . . 14 . . . . 4 3 . 16 Level 3 14 | . . . . . 33 . . . . 18 20 . 15 Level 4 10 | . . . . . 20 . . . . 8 17 . 23 Level 5 3 | . . . . . 7 . . . . . 11 . . High Security 4 | . . . . . . . . . . . 46 . . Max Security . | . . . . . . . . . . . . . . Peak Influence 3775 | 15 334 . 52 . 1783 . . . . 1390 3775 . 1162 Initial 679 | . . . 7 . . . . . . 157 679 . . Average 577 | 2 115 . 9 . 865 . . . . 468 2020 . 592 Influence Increases 13361 | 30 873 15 491 . 2712 380 544 . 505 2161 3786 . 1864 Destroy 0b10 Robot/C 6500 | . 500 . 220 . 1300 320 500 . 400 580 2060 . 620 Destroy 0b10 Robot/NC 665 | 30 80 . 35 . 250 . . . 15 75 55 . 125 Destroy Leader 1124 | . 120 . . . 310 30 40 . 60 122 328 . 114 Allied During Kill 735 | . . . 79 . 113 . 4 . . 42 497 . . Successful Hack 214 | . 30 . 66 . 36 . . . . 64 18 . . Select Force Hacks 150 | . 60 . 60 . . . . . . 30 . . . Disable Machine 885 | . 75 . 15 . 255 . . . . 195 225 . 120 Destroy Structure 1468 | . 8 . 16 . 298 . . . . 288 288 . 570 Advance Influence 150 | . . . . . . . . . . 150 . . . Partial Spotted 195 | . . . . . 15 . . . . 105 15 . 60 Lose Combat Pursuer 1275 | . . 15 . . 135 30 . . 30 510 300 . 255 Influence Decreases 12301 | 30 565 308 506 . 932 1294 777 633 492 788 1411 3761 804 Entered New Map 6087 | . . 148 8 . . 659 165 633 . 6 707 3761 . Time Decay 4459 | 30 535 160 408 . 667 595 522 . 382 482 294 . 384 Search Patrol Dispatched 200 | . . . . . . . . . . 200 . . . Lost Part 991 | . 30 . 1 . 100 30 70 . 110 40 190 . 420 Lost Ally 564 | . . . 89 . 165 10 20 . . 60 220 . . Squads Dispatched 87 | . 8 . . . 25 . 1 . . 12 32 . 9 Investigation 19 | . 8 . . . 2 . . . . 7 1 . 1 Extermination 13 | . . . . . 6 . . . . 3 2 . 2 Reinforcement 18 | . . . . . 9 . . . . 1 5 . 3 Assault 33 | . . . . . 6 . 1 . . 1 24 . 1 Garrison 2 | . . . . . 2 . . . . . . . . Intercept 2 | . . . . . . . . . . . . . 2 Searches Triggered 2 | . . . . . . . . . . 2 . . . Construction Impeded 3 | . . . . . 2 . . . . . . . 1 Haulers Reinforced 6 | . . . . . 3 . . . . 1 . . 2 Active Scanning Responses . | . . . . . . . . . . . . . . Cargo Convoy Interrupts 1 | . . . . . 1 . . . . . . . . Stealth | -11 -10 -10 -7 -7 -5 -5 -5 -5 -4 -4 -4 -4 -3 --------- Run | Yrd Mat Sub Rec Scr Fac Upp Upp Zhi Pro Fac Arm Lab Res Distress Signals 13 | . . . 1 . 4 . . . . 3 3 . 2 Communications Jammed . | . . . . . . . . . . . . . . Distress Signals . | . . . . . . . . . . . . . . Times Spotted 519 | . 32 13 12 . 104 18 22 . 23 64 168 1 62 Peak Tracking Total 19 | . 3 4 2 . 6 7 9 . 5 9 19 1 14 Tactical Retreats 38 | . . 1 . . 5 2 . . 2 15 6 . 7 Traps | -11 -10 -10 -7 -7 -5 -5 -5 -5 -4 -4 -4 -4 -3 ------- Run | Yrd Mat Sub Rec Scr Fac Upp Upp Zhi Pro Fac Arm Lab Res Traps Triggered 17 | . 3 1 . . 7 . . . . 3 3 . . Indirectly . | . . . . . . . . . . . . . . Trap Hack Attempts . | . . . . . . . . . . . . . . Triggered . | . . . . . . . . . . . . . . Disarmed . | . . . . . . . . . . . . . . Reprogrammed . | . . . . . . . . . . . . . . Reused . | . . . . . . . . . . . . . . Traps Extracted . | . . . . . . . . . . . . . . Installed . | . . . . . . . . . . . . . . Triggered . | . . . . . . . . . . . . . . Machines | -11 -10 -10 -7 -7 -5 -5 -5 -5 -4 -4 -4 -4 -3 ---------- Run | Yrd Mat Sub Rec Scr Fac Upp Upp Zhi Pro Fac Arm Lab Res Machines Disabled 70 | . 5 1 1 . 17 1 2 . . 16 15 4 8 Max in Single Turn 11 | . 1 1 1 . 6 1 2 . . 11 2 3 3 Machines Repaired . | . . . . . . . . . . . . . . Machines Dismantled . | . . . . . . . . . . . . . . Machines Sabotaged . | . . . . . . . . . . . . . . Overloaded Fab Kills . | . . . . . . . . . . . . . . Hacking | -11 -10 -10 -7 -7 -5 -5 -5 -5 -4 -4 -4 -4 -3 --------- Run | Yrd Mat Sub Rec Scr Fac Upp Upp Zhi Pro Fac Arm Lab Res Machines Accessed 55 | . 11 1 9 . 8 1 1 4 . 13 4 . 3 Terminals 26 | . 8 . 6 . 1 1 . . . 5 3 . 2 Fabricators 5 | . . . . . 2 . . . . 2 1 . . Repair Stations 5 | . 1 . . . 1 . . . . 2 . . 1 Recycling Units 9 | . 2 . 3 . 1 . . . . 3 . . . Scanalyzers 3 | . . . . . 2 . . . . 1 . . . Garrison Access 1 | . . . . . 1 . . . . . . . . Total Hacks 194 | . 41 1 35 . 27 7 1 17 . 44 13 . 8 Successful 122 | . 23 1 14 . 17 7 1 17 . 32 8 . 2 Failed 70 | . 18 . 21 . 9 . . . . 11 5 . 6 Catastrophic 13 | . 3 . 4 . 2 . . . . 1 2 . 1 Database Lockouts 2 | . . . . . 1 . . . . 1 . . . Manual 111 | . 31 . 29 . 15 . . . . 19 8 1 8 Terminals 94 | . 28 . 27 . 3 7 . . . 14 8 . 7 Fabricators 22 | . . . . . 8 . . . . 9 5 . . Repair Stations 15 | . 9 . . . 1 . . . . 4 . . 1 Recycling Units 31 | . 4 . 8 . 5 . . . . 14 . . . Scanalyzers 11 | . . . . . 8 . . . . 3 . . . Garrison Access 2 | . . . . . 2 . . . . . . . . Terminal Hacks 43 | . 7 1 3 . . 7 1 17 . 3 4 . . Record 12 | . . . . . . 7 . 5 . . . . . Part Schematic 5 | . . . 1 . . . . 4 . . . . . Robot Analysis 12 | . 6 . 1 . . . . 4 . . 1 . . Prototype ID Bank 7 | . 1 . 1 . . . . 4 . 1 . . . Open Door 2 | . . . . . . . 1 . . . 1 . . Branch Access Points 1 | . . . . . . . . . . 1 . . . Terminal Index 1 | . . . . . . . . . . . 1 . . Locate Traps 1 | . . . . . . . . . . 1 . . . Recall Extermination 1 | . . . . . . . . . . . 1 . . Proto ID Catalog 1 | . . 1 . . . . . . . . . . . Fabricator Hacks 8 | . . . . . 1 . . . . 5 2 . . Network Status 2 | . . . . . 1 . . . . 1 . . . Load Schematic 3 | . . . . . . . . . . 2 1 . . Build 3 | . . . . . . . . . . 2 1 . . Repair Station Hacks 9 | . 8 . . . . . . . . 1 . . . Scan Component 5 | . 4 . . . . . . . . 1 . . . Repair 4 | . 4 . . . . . . . . . . . . Recycling Unit Hacks 7 | . . . . . . . . . . 7 . . . Recycle Component 2 | . . . . . . . . . . 2 . . . Process 4 | . . . . . . . . . . 4 . . . Retrieve Matter 1 | . . . . . . . . . . 1 . . . Scanalyzer 8 | . . . . . 7 . . . . 1 . . . Insert Component 1 | . . . . . 1 . . . . . . . . Retrieve Study 7 | . . . . . 6 . . . . 1 . . . Garrison Access Hacks . | . . . . . . . . . . . . . . Unauthorized Hacks 47 | . 8 . 11 . 9 . . . . 15 2 . 2 Terminals 20 | . 6 . 7 . 1 . . . . 3 2 . 1 Botnet 10 | . 3 . 2 . . . . . . 3 1 . 1 Disrupt 1 | . . . . . . . . . . . 1 . . Operators 2 | . 1 . . . 1 . . . . . . . . Skim 7 | . 2 . 5 . . . . . . . . . . Fabricators 7 | . . . . . 4 . . . . 3 . . . Report 1 | . . . . . 1 . . . . . . . . Prioritize 2 | . . . . . . . . . . 2 . . . Liberate 3 | . . . . . 2 . . . . 1 . . . Haulers 1 | . . . . . 1 . . . . . . . . Repair Stations 3 | . . . . . . . . . . 2 . . 1 Patch 3 | . . . . . . . . . . 2 . . 1 Recycling Units 15 | . 2 . 4 . 3 . . . . 6 . . . Reject 5 | . . . 1 . 1 . . . . 3 . . . Recyclers 3 | . . . 1 . 1 . . . . 1 . . . Mask 3 | . . . . . 1 . . . . 2 . . . Tunnel 4 | . 2 . 2 . . . . . . . . . . Scanalyzers 1 | . . . . . . . . . . 1 . . . Extract 1 | . . . . . . . . . . 1 . . . Garrison Access 1 | . . . . . 1 . . . . . . . . Watchers 1 | . . . . . 1 . . . . . . . . Data Cores Recovered 2 | . 1 . . . . . . . . 1 . . . Used 1 | . 1 . . . . . . . . . . . . Hacking Detections 42 | . 9 . 8 . 8 . . . . 12 3 . 2 Full Trace Events 12 | . 6 . 1 . 1 . . . . 3 1 . . Feedback Events . | . . . . . . . . . . . . . . Feedback Blocked . | . . . . . . . . . . . . . . Robot Schematics Acquired . | . . . . . . . . . . . . . . Robots Built . | . . . . . . . . . . . . . . Authchips . | . . . . . . . . . . . . . . Time . | . . . . . . . . . . . . . . Total Robot Build Rating . | . . . . . . . . . . . . . . Part Schematics Acquired 10 | . . . 1 . . . . 4 . 5 . . . Parts Built 3 | . . . . . . . . . . 2 1 . . Authchips . | . . . . . . . . . . . . . . Time 232 | . . . . . . . . . . 139 93 . . Total Part Build Rating 21 | . . . . . . . . . . 14 7 . . Part Studies Acquired 7 | . . . . . 6 . . . . 1 . . . Parts Repaired 4 | . 4 . . . . . . . . . . . . Time 166 | . 166 . . . . . . . . . . . . Parts Recycled 2 | . . . . . . . . . . 2 . . . Recycled Matter 186 | . . . . . . . . . . 186 . . . Retrieved Matter 186 | . . . . . . . . . . 186 . . . Retrieved Components . | . . . . . . . . . . . . . . Parts Scanalyzed . | . . . . . . . . . . . . . . Part Schematics Acquired . | . . . . . . . . . . . . . . Parts Damaged . | . . . . . . . . . . . . . . Bothacking | -11 -10 -10 -7 -7 -5 -5 -5 -5 -4 -4 -4 -4 -3 ------------ Run | Yrd Mat Sub Rec Scr Fac Upp Upp Zhi Pro Fac Arm Lab Res Used RIF Installer . | . . . . . . . . . . . . . . Robots Hacked 3 | . . . . . . . . 3 . . . . . Non-combat . | . . . . . . . . . . . . . . Combat 3 | . . . . . . . . 3 . . . . . Robot Hacks Applied 3 | . . . . . . . . 3 . . . . . parse_system 3 | . . . . . . . . 3 . . . . . Relay Couplers Released . | . . . . . . . . . . . . . . Fabnet Peak Effective % . | . . . . . . . . . . . . . . Robots Rewired 23 | . . . 22 . . . 1 . . . . . . Allies Hacked 1 | . . . . . 1 . . . . . . . . Hacks Repelled . | . . . . . . . . . . . . . . Allies | -11 -10 -10 -7 -7 -5 -5 -5 -5 -4 -4 -4 -4 -3 -------- Run | Yrd Mat Sub Rec Scr Fac Upp Upp Zhi Pro Fac Arm Lab Res Total Allies 36 | . . . 22 . 3 . 1 . . . 10 . . Largest Group 13 | . . . 13 11 11 . 1 . . . 10 . . Highest-Rated Group 481 | . . . 281 281 281 . 30 . . . 481 . . Highest-Rated Ally 58 | . . . 40 40 40 . 30 . . . 58 . . Total Orders 52 | . . . . . . 5 . . . 17 30 . . STAY 4 | . . . . . . . . . . 1 3 . . FOLLOW 7 | . . . . . . . . . . 3 4 . . EXPLORE 13 | . . . . . . 5 . . . 8 . . . RETURN 28 | . . . . . . . . . . 5 23 . . Ally Attacks 499 | . . . 49 . 79 . . . . 62 309 . . Total Damage 9409 | . . . 797 . 896 . . . . 1190 6526 . . Kills 48 | . . . 7 . 5 . . . . 4 32 . . Allies Corrupted 1 | . . . . . 1 . . . . . . . . Allies Melted . | . . . . . . . . . . . . . . Intel | -11 -10 -10 -7 -7 -5 -5 -5 -5 -4 -4 -4 -4 -3 ------- Run | Yrd Mat Sub Rec Scr Fac Upp Upp Zhi Pro Fac Arm Lab Res Active Infowar (turns) 6510 | 38 1423 1705 885 . 1693 726 . . 2 37 1 . . Optics 176 | . . . . . 176 . . . . . . . . Sensors 2166 | . . . . . 1440 726 . . . . . . . Terrain 4052 | 38 1423 1705 885 . . . . . . 1 . . . Seismic 1 | . . . . . . . . . . . 1 . . Machine Analysis 73 | . . . . . 73 . . . . . . . . Jamming 42 | . . . . . 4 . . . 2 36 . . . Robot Analysis Total 12 | . 6 . 1 . . . . 4 . . 1 . . Derelict Logs Recovered 10 | . . 1 . 5 . 2 1 . 1 . . . . Drone Launches 62 | . . . . . . 5 . . . 21 36 . . Drone Recoveries 52 | . . . . . . 4 . . . 14 34 . . Exploration | -11 -10 -10 -7 -7 -5 -5 -5 -5 -4 -4 -4 -4 -3 ------------- Run | Yrd Mat Sub Rec Scr Fac Upp Upp Zhi Pro Fac Arm Lab Res Turns Passed 21705 | 154 2779 2170 2063 1198 3121 1891 1442 352 2899 1257 1224 178 977 Spaces Moved 12838 | 63 1463 833 1034 658 1763 924 756 195 996 1685 1303 191 974 Core 28 | 5 . . . . . . . . . . . . 23 Treads 7590 | 58 1463 726 1034 658 916 924 756 195 860 . . . . Legs . | . . . . . . . . . . . . . . Wheels 524 | . . 107 . . 417 . . . . . . . . Hover 4266 | . . . . . . . . . 136 1685 1303 191 951 Flight 430 | . . . . . 430 . . . . . . . . Fastest Speed 27 | 50 160 120 160 165 28 166 167 170 78 27 34 42 35 Average Speed 127 | 151 160 158 167 178 121 166 169 170 262 39 44 54 49 Slowest Speed 410 | 160 160 260 250 245 270 168 170 170 410 146 145 142 350 Overloaded Moves 50 | . . . . . . . . . 5 . 45 . . Propulsion Burnouts . | . . . . . . . . . . . . . . Robots Hopped 1 | . . . . . 1 . . . . . . . . Potential Cave-ins 4 | . . . . . . . . . 2 2 . . . Cave-ins Triggered . | . . . . . . . . . . . . . . Teleports 1 | . . . . . . . . . . . 1 . . Exploration Rate (%) 61 | 3 97 38 99 51 34 90 86 60 96 39 46 95 24 Regions Visited 13 Branch Regions 9 Pre-discovered Areas 17 | . 2 1 5 5 . . 1 3 . . . . . Known Exits Taken 4 | . . . . . 1 1 . . 1 1 . . . Unknown Exits Taken 9 | 1 1 1 1 1 . . 1 1 . . 1 1 . Scrap Searched 29 | . . 11 . 7 . 3 3 . 5 . . . . Spaces Dug 159 | . . 7 . . . 3 26 . 39 20 29 . 35 Terrain Destroyed 1309 | . 5 52 14 . 178 29 100 . 204 150 202 4 371 Melee 16 | . . . . . . . . . 4 3 3 . 6 Projectile 163 | . . 2 14 . 27 5 1 . 53 40 18 . 3 AOE 1124 | . 5 50 . . 149 24 99 . 147 107 178 4 361 Terrain Rammed . | . . . . . . . . . . . . . . Walls Destroyed . | . . . . . . . . . . . . . . Machines Disabled . | . . . . . . . . . . . . . . Actions | -11 -10 -10 -7 -7 -5 -5 -5 -5 -4 -4 -4 -4 -3 --------- Run | Yrd Mat Sub Rec Scr Fac Upp Upp Zhi Pro Fac Arm Lab Res Total 16532 | 87 1735 1633 1298 687 2331 1214 840 217 1178 2122 1679 244 1267 Wait 1566 | . 139 715 22 . 128 222 16 . 36 169 69 2 48 Move 12823 | 62 1462 832 1033 657 1760 923 755 194 995 1684 1302 190 974 Hop 1 | . . . . . 1 . . . . . . . . Pick Up 206 | 1 15 18 . 11 44 6 4 1 15 28 34 9 20 Fast Attach 152 | 7 6 2 3 3 31 8 5 8 12 26 18 3 20 Attach 141 | . 3 8 . . 28 5 2 1 14 14 25 8 33 Detach 72 | . 2 1 1 1 20 1 1 2 7 13 9 3 11 Swap 275 | . 14 14 5 2 50 11 2 . 16 50 66 14 31 Drop 223 | . 7 12 3 13 51 7 3 8 5 41 40 7 26 Fire 798 | 17 87 31 33 . 218 31 45 3 66 85 108 1 73 Melee 57 | . . . . . . . . . 7 10 4 7 29 Ram 3 | . . . . . . . . . . 1 . . 2 Kick . | . . . . . . . . . . . . . . Crush 4 | . . . 2 . . . . . 2 . . . . Escape Stasis . | . . . . . . . . . . . . . . Rewire 207 | . . . 196 . . . 7 . 3 . 1 . . Trap . | . . . . . . . . . . . . . . Miscellaneous 4 | . . . . . . . . . . 1 3 . . Route ------- -11/Scrapyard -10/Materials (discovered 5 exits: [*Mat x3] / [*Min] / *Sub) -10/Subcaves (discovered 3 exits: [*Mat x2] / *Rec) -7/Recycling (discovered 2 exits: *Fac / [*Scr]) -7/Scraptown -5/Factory (discovered 2 exits: *Fac / *Upp) -5/Upper Caves -5/Upper Caves (discovered 2 exits: *Fac / *Zhi) -5/Zhirov -4/Proximity Caves -4/Factory (discovered 4 exits: *Res / *Upp x2 / *Arm) -4/Armory -4/Lab -3/Research (discovered 1 exit: *Qua) History --------- Turn | Location | Event 10 | -11/Scrapyard | Discovered new exit (range 16) 155 | -11/Scrapyard | Entered Materials 299 | -10/Materials | Discovered new exit (range 11) 317 | -10/Materials | Build established: Mutant 425 | -10/Materials | Repaired Faulty Adv. Beam Cannon? 786 | -10/Materials | Discovered new exit (range 16) 901 | -10/Materials | Discovered new exit (range 11) 1606 | -10/Materials | Discovered new exit (range 15) 2315 | -10/Materials | Core integrity fell below 50% 2722 | -10/Materials | Discovered new exit (range 7) 2811 | -10/Materials | Repaired Adv. Beam Cannon 2839 | -10/Materials | Repaired Lgt. Treads 2878 | -10/Materials | Repaired Imp. Heat Sink 2934 | -10/Materials | Entered Subcaves 3015 | -10/Subcaves | Disturbed a concealed Subdweller 3590 | -10/Subcaves | Visited 4L-MR0's lab 3611 | -10/Subcaves | Found Flightbrick 3711 | -10/Subcaves | Discovered new exit (range 13) 3875 | -10/Subcaves | Shifting Twisted Machinery released Sub. Beam Cannon 3882 | -10/Subcaves | Shifting Twisted Machinery released Barrage Gun 3889 | -10/Subcaves | Discovered new exit (range 9) 4101 | -10/Subcaves | Core integrity fell below 20% 4135 | -10/Subcaves | Lost 5 parts (1p2n2w) 5101 | -10/Subcaves | Discovered new exit (range 3) 5104 | -10/Subcaves | Entered Recycling 5547 | -7/Recycling | Build established: Commander-Mutant 5883 | -7/Recycling | Lost 5 allies 6208 | -7/Recycling | Discovered new exit (range 15) 6523 | -7/Recycling | Learned location of 1 exit from Lower Caves 6576 | -7/Recycling | Learned location of 1 exit from Cetus 6620 | -7/Recycling | Learned location of 1 exit from Cetus 6655 | -7/Recycling | Learned location of Lower Caves (-7) 6679 | -7/Recycling | Learned location of Extension (-6) 6694 | -7/Recycling | Learned 4 Upper Caves zone layouts 6719 | -7/Recycling | Learned Hub_04(d) security intel 6756 | -7/Recycling | Learned location of Zion (-6) 6801 | -7/Recycling | Learned 4 Hub_04(d) zone layouts 7099 | -7/Recycling | Scanned before Scraplab entrance 7124 | -7/Recycling | Entered Scraplab 7137 | -7/Recycling | Discovered new exit (range 2) 7167 | -7/Recycling | Entered Scraptown 7167 | -7/Scraptown | Accompanied by 11 allies 7463 | -7/Scraptown | Heard Great Nut preacher, LISTEN AND RECITE! 7488 | -7/Scraptown | Discovered new exit (range 11) 7573 | -7/Scraptown | Scanned Subdweller tech in exchange for log data 7577 | -7/Scraptown | Learned location of Armory (-4) 7599 | -7/Scraptown | Learned location of Quarantine (-3) 8156 | -7/Scraptown | Visited Bundlers 8365 | -7/Scraptown | Entered Factory 8365 | -5/Factory | Accompanied by 11 allies 8365 | -5/Factory | Evolved 10 slots: Power x1, Propulsion x5, Utility x2, Weapon x2 8366 | -5/Factory | Attached Flightbrick, gained temporary slots: Utility x3 8697 | -5/Factory | Lost 3 parts (1p1n1w) 8752 | -5/Factory | Attached CPS modules to H-66 Slayer. 8984 | -5/Factory | Discovered new exit (range 11) 9018 | -5/Factory | Identified exit to Factory 9066 | -5/Factory | P-70 Sage assimilated allied Angel 4a 9265 | -5/Factory | First assault squad dispatched 9301 | -5/Factory | Central database locked down 9343 | -5/Factory | Build established: Scavenger-Gunner 9647 | -5/Factory | Cargo convoy interrupted 9804 | -5/Factory | Found Prototype Launcher 9804 | -5/Factory | Identified Com. Tesla Bomb Launcher 9830 | -5/Factory | Found Prototype Device 9830 | -5/Factory | Identified Exp. Shield Generator 9855 | -5/Factory | Found Prototype Device 9855 | -5/Factory | Identified Exp. Transmission Jammer 10872 | -5/Factory | System corruption reached 10% 11294 | -5/Factory | Discovered new exit (range 15) 11300 | -5/Factory | Garrison activated, responded to threat 11448 | -5/Factory | Identified exit to Upper Caves 11486 | -5/Factory | Entered Upper Caves 11487 | -5/Upper Caves | Identified exit to Upper Caves 11736 | -5/Upper Caves | Build established: Scavenger-Skirmisher 12171 | -5/Upper Caves | Spotted B-75 Beast 12234 | -5/Upper Caves | Destroyed B-75 Beast 12288 | -5/Upper Caves | Learned 8 Factory zone layouts 12400 | -5/Upper Caves | Attracted the attention of an 0b10 checkpoint 12504 | -5/Upper Caves | Build established: Scavenger-Tank 12951 | -5/Upper Caves | Build established: Scavenger-Gunner 13023 | -5/Upper Caves | Attracted the attention of an 0b10 base 13062 | -5/Upper Caves | Learned Factory stockpile data 13071 | -5/Upper Caves | Learned location of 2 exits from Lower Caves 13071 | -5/Upper Caves | Learned 6 Lower Caves zone layouts 13071 | -5/Upper Caves | Learned Factory emergency access door positions 13071 | -5/Upper Caves | Learned Research emergency access door positions 13377 | -5/Upper Caves | Entered another Upper Caves area 13609 | -5/Upper Caves | Discovered exit to Factory (range 9) 13752 | -5/Upper Caves | Attracted the attention of an 0b10 outpost 13825 | -5/Upper Caves | Destroyed 12 combat bots 13832 | -5/Upper Caves | Lost 4 parts (3n1w) 14120 | -5/Upper Caves | Attracted the attention of an 0b10 checkpoint 14420 | -5/Upper Caves | Build established: Gunner 14779 | -5/Upper Caves | Encountered a Warlord checkpoint 14783 | -5/Upper Caves | Discovered new exit (range 14) 14819 | -5/Upper Caves | Entered Zhirov 14819 | -5/Zhirov | Discovered new exit (range 3) 14852 | -5/Zhirov | Met Zhirov 14895 | -5/Zhirov | Found Alien Artifact 14895 | -5/Zhirov | Identified Integrated Reactor 14895 | -5/Zhirov | Installed Integrated Reactor, increased core energy generation (+10) 15065 | -5/Zhirov | Found Alien Artifact 15102 | -5/Zhirov | Learned location of Testing (-2) 15102 | -5/Zhirov | Learned location of Command (-1) 15117 | -5/Zhirov | Zhirov requested help retrieving the SGEMP Prototype 15133 | -5/Zhirov | Build established: Mutant 15171 | -5/Zhirov | Entered Proximity Caves 15174 | -4/Proximity Caves | Spotter reported a threat 15264 | -4/Proximity Caves | Learned location of 1 exit from Research 15349 | -4/Proximity Caves | Core integrity fell below 50% 15379 | -4/Proximity Caves | Lost 7 parts (2p2n3w) 15770 | -4/Proximity Caves | Build established: Gunner 15933 | -4/Proximity Caves | Attracted the attention of an 0b10 checkpoint 16305 | -4/Proximity Caves | Destroyed 7 combat bots 16311 | -4/Proximity Caves | Lost 5 parts (2p1n2w) 17029 | -4/Proximity Caves | Spotted B-86 Titan 17202 | -4/Proximity Caves | Build established: Derelict-Gunner 17850 | -4/Proximity Caves | Destroyed B-86 Titan 17918 | -4/Proximity Caves | Discovered exit to Factory (range 9) 18070 | -4/Proximity Caves | Entered Factory 18070 | -4/Factory | Evolved 2 slots: Utility x2 18341 | -4/Factory | Found Prototype Device 18341 | -4/Factory | Identified Adv. EM Shield 18570 | -4/Factory | Search patrols dispatched 18612 | -4/Factory | Spotted B-86 Titan 18741 | -4/Factory | Central database locked down 18776 | -4/Factory | Spotted B-86 Titan 18820 | -4/Factory | Search patrols dispatched 18874 | -4/Factory | Fabricated Assault Drone Bay? 18986 | -4/Factory | Discovered new exit (range 7) 19096 | -4/Factory | Discovered new exit (range 7) 19132 | -4/Factory | Identified exit to Upper Caves 19132 | -4/Factory | Identified exit to Armory 19149 | -4/Factory | Watched by a mysterious "MATRIX" hacker. 19242 | -4/Factory | Fabricated Assault Drone Bay? 19320 | -4/Factory | First assault squad dispatched 19327 | -4/Factory | Entered Armory 19327 | -4/Armory | Accompanied by 2 allies 19402 | -4/Armory | Build established: Scavenger-Gunner 19446 | -4/Armory | Found Prototype Hackware 19577 | -4/Armory | First assault squad dispatched 19641 | -4/Armory | Identified Exp. Hacking Suite 19718 | -4/Armory | Assisted by bots powering up and referring to "LRC-V3" 19972 | -4/Armory | Lost 7 allies 19976 | -4/Armory | High security lockdown imminent 20056 | -4/Armory | High security lockdown engaged 20092 | -4/Armory | Fabricated Assault Drone Bay? 20157 | -4/Armory | Destroyed 13 combat bots 20282 | -4/Armory | Destroyed 17 combat bots 20298 | -4/Armory | Lost 6 parts (2p1u3w) 20307 | -4/Armory | Found Fusion Bomb Launcher 20493 | -4/Armory | Destroyed 10 combat bots 20493 | -4/Armory | Lost 5 parts (1n2u2w) 20496 | -4/Armory | Found Fusion Bomb Launcher 20510 | -4/Armory | Identified Transdimensional Reconstructor 20510 | -4/Armory | Warped through subspace to slip node 20510 | -4/Armory | Discovered new exit (range 1) 20544 | -4/Armory | Spotted B-86 Titan 20551 | -4/Armory | Entered Lab 20551 | -4/Lab | Discovered new exit (range 9) 20557 | -4/Lab | Unable to decrypt terminal 20557 | -4/Lab | Opened the door to a hidden lab 20558 | -4/Lab | Gained access to the hidden lab's interior 20559 | -4/Lab | Detected by scanners 20563 | -4/Lab | Found Alien Artifact 20568 | -4/Lab | Confronted by A5 20572 | -4/Lab | Found Transdimensional Reconstructor 20580 | -4/Lab | Found Alien Artifact 20580 | -4/Lab | Identified Integrated Mediator 20580 | -4/Lab | Installed Integrated Mediator, increased core attachment efficiency 20590 | -4/Lab | Found Alien Artifact 20590 | -4/Lab | Identified Core Expander 20590 | -4/Lab | Installed Core Expander, added new Utility slot 20605 | -4/Lab | Found Prototype Energy Cannon 20605 | -4/Lab | Identified Potential Cannon 20638 | -4/Lab | Found Prototype Device 20638 | -4/Lab | Identified AEGIS Remote Shield 20642 | -4/Lab | Destroyed A5 20649 | -4/Lab | Found Quantum Router 20689 | -4/Lab | Found Potential Cannon 20697 | -4/Lab | Found Prototype Special Weapon 20697 | -4/Lab | Identified Gui. Remote Datajack 20729 | -4/Lab | Entered Research 20729 | -3/Research | Evolved 2 slots: Propulsion x1, Utility x1 20730 | -3/Research | Identified exit to Quarantine 20835 | -3/Research | Spotted B-86 Titan 20913 | -3/Research | Intercept squad dispatched 20926 | -3/Research | Spotted Tracker 20927 | -3/Research | Spotted Tracker 20940 | -3/Research | Destroyed Tracker 20943 | -3/Research | Destroyed Tracker 20963 | -3/Research | Spotted Combat Programmer 20965 | -3/Research | Spotted Combat Programmer 20990 | -3/Research | System corruption reached 10% 21032 | -3/Research | Build established: Hacker-Gunner 21036 | -3/Research | Destroyed Combat Programmer 21046 | -3/Research | Lost 8 parts (4p2n2w) 21115 | -3/Research | Spotted B-86 Titan 21368 | -3/Research | Lost 3 parts (3n) 21479 | -3/Research | First assault squad dispatched 21562 | -3/Research | Build established: Hacker-Mutant 21640 | -3/Research | Found Gamma Bomb Array 21644 | -3/Research | Intercept squad dispatched 21665 | -3/Research | Spotted Tracker 21666 | -3/Research | Spotted Tracker 21679 | -3/Research | Core integrity fell below 50% 21694 | -3/Research | Spotted Combat Programmer 21700 | -3/Research | Core integrity fell below 20% 21706 | -3/Research | Destroyed by Tracker with Linked Autogun Last Messages --------------- 21688_ Adv. EM Shield destroyed. 21690_ K-01 Serf collects debris. 21690_ Imp. Antigrav System+ destroyed. 21691_ Adv. Thermal Shield destroyed. 21692_ Cmb. Linear Gravjet destroyed. 21694_ System corrupted: Energy discharge (-32). 21694_ Hpw. Tractor Beam destroyed. 21694_ Dropped Lrg. Storage Unit. 21694_ K-01 Serf collects debris. 21695_ Combat Programmer resets Tracker, system corruption cleaned. 21695_ Dropped Gui. Remote Datajack. 21695_ Dropped Imp. Matter Compressor. 21696_ EMDS Slug penetrates Wall. 21700_ S-43 Plague misfires. 21700_ EMDS Slug penetrates Wall. 21703_ Combat Programmer resets Tracker, system corruption cleaned. 21704_ Imp. Armor Integrity Analyzer destroyed. 21706_ Imp. Gyrokinetic Inverter destroyed. Map ----- +----------------------------------------------------+ | ????# #? """ | | ????# # """ | | ????# # =# # # # ## | | ????# # ## ## # # | | #########+############ # | | # # # # # " | | ## # # "" """ # | | | ###### ####"S """" # | | = * # #??###??#"" """" # | | !! ####+######+########?????#"" " "" # | | """ * =# # #?????#### # | | F""" = # = # #????????# # | | """" # # #????????####+##### | | # + #??????????## #???# | | # =# #??????????#" #???# | | # # #??????????## #???# | | ## # = # ! #???????????# #???# | | ?# # # #?????????###+##### | | ##! # ###########?????????# | | = = ####+#####???????????????????# | | ==! #??# #???????????????????????# | | #### #???????????????????????# | | // #???##"#"?"?????????????# | | // #??## " " "????""???????##/####+# | | / ##### " " "" ""#???????# #????? | | s @ "#???????# #????? | | [ | > ""#???????# #????? | | !! ""#???????# #????? | | ####+################# "" ""#???????# #????? | | #/ == #?????????### " """""#???????# #????? | | # = = #???????????##"#"#"######????????# #????? | | # == #????????????????????????????????# #????? | | # / #???#########???????????????????## ##???? | | # ??# #?????????????####### ### # | | #! ! #?# #?????????????# |! = # | | # [! #?# #?????????????#!##### ##### | | # ==%! #?# ############??#!#???#####???? | | #*%== %! #?# # #??# #???????????? | | ##/# = # ### # ^ #??#[#???????????? | | # ### # ####!############# | | / " # = !!! | | # ] # / !!| | | # # ! # ! # !]!! | | # # # # !! | | # # ####" "##################+### | | + # #??#"T"#????????????????????? | | # # #??#"""#????????????????????? | | # #!/ #??#####????????????????????? | | # # #! #???????????????????????????? | | ##+########### #???????????????????????????? | +----------------------------------------------------+ Best States ------------- Heat Dissipation 84 Coolant Potential 80 Energy Generation 55 Energy Capacity 560 Matter Stores 573 Matter Capacity 600 Sight Range 20 Robot Scan Range 15 Terrain Scan Range 16 Terrain Scan Density 10 Jamming Range 16 Armor Coverage 600 Resistance: KI 30 Resistance: TH 30 Resistance: EM 50 Weapon Shielding 66 Weapon Cycling 20 Phase Shifting 5 Evasion (%) 63 Target Analysis 9 Core Analysis 6 Armor Integrity Analysis 40 Recoil Reduction 5 Offensive Hacking 21 Defensive Hacking 25 Item Schematics ----------------- Hvy. Rocket Launcher | -7/Recycling | Hacked Assault Drone Bay | -5/Zhirov | Free Exp. Heat Sink | -5/Zhirov | Free Exp. Optical Array | -5/Zhirov | Free Imp. Arc Thrower | -5/Zhirov | Free Imp. Focal Shield | -4/Factory | Extracted Lgt. Antimatter Reactor | -4/Factory | Extracted Hvy. Machine Gun | -4/Factory | Extracted Com. Battery | -4/Factory | Extracted Adv. System Restoration Module | -4/Factory | Extracted Robot Schematics ------------------ None Fabricated ------------ Assault Drone Bay | x1 | -4/Factory Assault Drone Bay | x1 | -4/Factory Assault Drone Bay | x1 | -4/Armory Repaired ---------- Adv. Beam Cannon | 95% | -10/Materials Adv. Beam Cannon | 33% | -10/Materials Lgt. Treads | 32% | -10/Materials Imp. Heat Sink | 42% | -10/Materials Studied --------- Mic. Fission Core | -5/Factory | Hacked Cesium-ion Thruster | -5/Factory | Hacked Flight Unit | -5/Factory | Hacked Gauss Rifle | -5/Factory | Hacked Hyp. Gauss Rifle | -5/Factory | Hacked Wheel | -5/Factory | Hacked Imp. Antigrav System | -4/Factory | Hacked Alien Tech Used ----------------- Integrated Reactor Transdimensional Reconstructor Integrated Mediator Core Expander Achievements -------------- None Challenges ------------ None Game ------ Seed SurveybotLayeredLayer Manual? 0 Play Time 04:29:32 Cumulative 670.5 hours Start 2026.03.17 @ 14:30:02 End 2026.03.18 @ 09:51:51 Sessions 3 Manual Loads 0 Difficulty Rogue Special Mode None Game No. 336 Rogue 336 Adventurer 0 Explorer 0 Win Type - Total 7 Types 3/0/2/1/0/0/0/0/0/1 Lore% 87 Gallery% 76 Achievement% 54 Wizard Run 0 Options --------- Layout 2 ASCII 0 Keyboard 1 Movement Vi Keybinds 0 Fullscreen 1 Font 16/Proggy Map View 55x47 Zoom Use 0% Tactical HUD 1 Map Filters NONE Filters NONE Steam 0 RUN: b0b10f0f-3d7b-450e-8d88-6a448deea56b